[Event "Titled Tuesday Blitz July 4 Early 2023"]
[White "Piesik, Piotr"]
[Black "Pandey Srishti"]
[WhiteFideId "1136194"]
[BlackFideId "35093290"]
[WhiteElo "2601"]
[BlackElo "2437"]
[Result "1-0"]
[Round "6"]
[TimeControl "180+2"]
[Date "2023.07.04"]
[WhiteClock "0:00:22"]
[BlackClock "0:00:00"]
[Board "107"]

1. Nf3 {[%clk 0:02:57]}  Nf6 {[%clk 0:02:58]} 2. g3 {[%clk 0:02:57]}  d5 {[%clk 0:02:57]} 3. Bg2 {[%clk 0:02:58]}  Nbd7 {[%clk 0:02:56]} 4. O-O {[%clk 0:02:59]}  e5 {[%clk 0:02:56]} 5. d3 {[%clk 0:03:00]}  Bd6 {[%clk 0:02:55]} 6. Nbd2 {[%clk 0:03:00]}  O-O {[%clk 0:02:55]} 7. e4 {[%clk 0:03:00]}  c6 {[%clk 0:02:55]} 8. a4 {[%clk 0:03:00]}  Re8 {[%clk 0:02:55]} 9. a5 {[%clk 0:03:00]}  Nf8 {[%clk 0:02:53]} 10. Qe2 {[%clk 0:02:59]}  Ne6 {[%clk 0:02:49]} 11. Nb3 {[%clk 0:02:59]}  h6 {[%clk 0:02:43]} 12. exd5 {[%clk 0:02:52]}  cxd5 {[%clk 0:02:42]} 13. Nxe5 {[%clk 0:02:47]}  Nd4 {[%clk 0:02:16]} 14. Nxd4 {[%clk 0:02:47]}  Bxe5 {[%clk 0:02:16]} 15. Nb3 {[%clk 0:01:57]}  Bxb2 {[%clk 0:02:12]} 16. Qxe8+ {[%clk 0:01:46]}  Nxe8 {[%clk 0:02:07]} 17. Bxb2 {[%clk 0:01:47]}  Bg4 {[%clk 0:01:59]} 18. h3 {[%clk 0:01:43]}  Be6 {[%clk 0:01:54]} 19. Rfe1 {[%clk 0:01:40]}  Rc8 {[%clk 0:01:43]} 20. Nd4 {[%clk 0:01:35]}  Qd7 {[%clk 0:01:41]} 21. Kh2 {[%clk 0:01:33]}  Nd6 {[%clk 0:01:37]} 22. Re2 {[%clk 0:01:25]}  Nb5 {[%clk 0:00:58]} 23. Nxe6 {[%clk 0:01:24]}  fxe6 {[%clk 0:00:59]} 24. Rae1 {[%clk 0:01:24]}  Re8 {[%clk 0:00:34]} 25. h4 {[%clk 0:01:22]}  Qc6 {[%clk 0:00:27]} 26. c4 {[%clk 0:01:18]}  Nc7 {[%clk 0:00:25]} 27. Be5 {[%clk 0:01:15]}  Rd8 {[%clk 0:00:16]} 28. Bd4 {[%clk 0:01:03]}  Qd7 {[%clk 0:00:11]} 29. Bxa7 {[%clk 0:00:49]}  Rf8 {[%clk 0:00:10]} 30. Bb6 {[%clk 0:00:45]}  dxc4 {[%clk 0:00:06]} 31. dxc4 {[%clk 0:00:45]}  Na8 {[%clk 0:00:04]} 32. Bc5 {[%clk 0:00:32]}  Rf5 {[%clk 0:00:02]} 33. Be3 {[%clk 0:00:25]}  Nc7 {[%clk 0:00:00]} 34. Bxb7 {[%clk 0:00:22]} 1-0


[Site "https://www.chess.com"]

[Event "Titled Tuesday Blitz July 4 Early 2023"]
[White "Avazkhonov, Alikhon"]
[Black "Asavasaetakul, Chawit"]
[WhiteFideId "14208504"]
[BlackFideId "6204856"]
[WhiteElo "2424"]
[BlackElo "2578"]
[Result "0-1"]
[Round "6"]
[TimeControl "180+2"]
[Date "2023.07.04"]
[WhiteClock "0:00:01"]
[BlackClock "0:00:33"]
[Board "108"]

1. d4 {[%clk 0:02:53]}  d5 {[%clk 0:02:59]} 2. c4 {[%clk 0:02:53]}  c6 {[%clk 0:02:59]} 3. Nc3 {[%clk 0:02:54]}  dxc4 {[%clk 0:02:59]} 4. a4 {[%clk 0:02:53]}  e5 {[%clk 0:02:59]} 5. dxe5 {[%clk 0:02:52]}  Qxd1+ {[%clk 0:03:00]} 6. Kxd1 {[%clk 0:02:53]}  Be6 {[%clk 0:02:59]} 7. Nf3 {[%clk 0:02:53]}  Na6 {[%clk 0:02:42]} 8. e4 {[%clk 0:02:33]}  Nb4 {[%clk 0:02:35]} 9. Bd2 {[%clk 0:02:33]}  O-O-O {[%clk 0:02:25]} 10. Ng5 {[%clk 0:02:33]}  Nd3 {[%clk 0:02:17]} 11. Bxd3 {[%clk 0:02:31]}  Rxd3 {[%clk 0:02:18]} 12. f4 {[%clk 0:02:22]}  Bc5 {[%clk 0:02:00]} 13. Kc2 {[%clk 0:02:16]}  Nh6 {[%clk 0:02:00]} 14. f5 {[%clk 0:01:32]}  Bd7 {[%clk 0:01:30]} 15. e6 {[%clk 0:01:33]}  fxe6 {[%clk 0:01:30]} 16. Nxe6 {[%clk 0:01:33]}  Bxe6 {[%clk 0:01:26]} 17. fxe6 {[%clk 0:01:34]}  Ng4 {[%clk 0:01:25]} 18. Rhf1 {[%clk 0:01:33]}  Re8 {[%clk 0:01:16]} 19. Rf7 {[%clk 0:01:32]}  Be3 {[%clk 0:01:06]} 20. Be1 {[%clk 0:01:19]}  Bh6 {[%clk 0:01:05]} 21. e7 {[%clk 0:01:13]}  Ne3+ {[%clk 0:01:02]} 22. Kb1 {[%clk 0:01:13]}  Kd7 {[%clk 0:01:01]} 23. Ka2 {[%clk 0:01:12]}  Rxe7 {[%clk 0:01:01]} 24. Rxe7+ {[%clk 0:01:10]}  Kxe7 {[%clk 0:01:01]} 25. Bf2 {[%clk 0:01:08]}  Nc2 {[%clk 0:00:59]} 26. Rf1 {[%clk 0:01:02]}  a5 {[%clk 0:00:54]} 27. Bc5+ {[%clk 0:01:01]}  Ke6 {[%clk 0:00:54]} 28. Kb1 {[%clk 0:00:52]}  g6 {[%clk 0:00:49]} 29. Kxc2 {[%clk 0:00:22]}  Rd2+ {[%clk 0:00:50]} 30. Kb1 {[%clk 0:00:22]}  Rxg2 {[%clk 0:00:50]} 31. Rd1 {[%clk 0:00:19]}  Bf4 {[%clk 0:00:44]} 32. Bb6 {[%clk 0:00:16]}  Rxh2 {[%clk 0:00:43]} 33. Bxa5 {[%clk 0:00:17]}  g5 {[%clk 0:00:44]} 34. Bb6 {[%clk 0:00:15]}  g4 {[%clk 0:00:44]} 35. Rd8 {[%clk 0:00:16]}  g3 {[%clk 0:00:43]} 36. Rg8 {[%clk 0:00:10]}  h5 {[%clk 0:00:43]} 37. a5 {[%clk 0:00:09]}  h4 {[%clk 0:00:43]} 38. Na4 {[%clk 0:00:05]}  Be5 {[%clk 0:00:41]} 39. Nc5+ {[%clk 0:00:05]}  Kf7 {[%clk 0:00:41]} 40. Rd8 {[%clk 0:00:04]}  Rxb2+ {[%clk 0:00:41]} 41. Kc1 {[%clk 0:00:05]}  Rxb6 {[%clk 0:00:37]} 42. Nd7 {[%clk 0:00:05]}  Ke7 {[%clk 0:00:34]} 43. axb6 {[%clk 0:00:04]}  Kxd8 {[%clk 0:00:33]} 44. Nxe5 {[%clk 0:00:05]}  h3 {[%clk 0:00:33]} 45. Nf3 {[%clk 0:00:01]}  h2 {[%clk 0:00:33]} 0-1


[Site "https://www.chess.com"]

[Event "Titled Tuesday Blitz July 4 Early 2023"]
[White "Terletsky, Oleg"]
[Black "MAHanif"]
[WhiteFideId "14116774"]
[WhiteElo "2562"]
[BlackElo "2361"]
[Result "0-1"]
[Round "6"]
[TimeControl "180+2"]
[Date "2023.07.04"]
[WhiteClock "0:00:00"]
[BlackClock "0:00:21"]
[Board "112"]

1. e4 {[%clk 0:03:00]}  c5 {[%clk 0:02:57]} 2. Nf3 {[%clk 0:03:00]}  Nc6 {[%clk 0:02:57]} 3. d4 {[%clk 0:03:00]}  cxd4 {[%clk 0:02:57]} 4. Nxd4 {[%clk 0:03:01]}  g6 {[%clk 0:02:58]} 5. c4 {[%clk 0:02:59]}  Bg7 {[%clk 0:02:57]} 6. Be3 {[%clk 0:02:59]}  Nf6 {[%clk 0:02:56]} 7. Nc3 {[%clk 0:02:59]}  O-O {[%clk 0:02:55]} 8. Be2 {[%clk 0:02:59]}  e6 {[%clk 0:02:55]} 9. O-O {[%clk 0:02:45]}  d5 {[%clk 0:02:55]} 10. exd5 {[%clk 0:02:28]}  exd5 {[%clk 0:02:55]} 11. c5 {[%clk 0:02:24]}  a5 {[%clk 0:02:39]} 12. Ncb5 {[%clk 0:02:15]}  Ne4 {[%clk 0:02:34]} 13. Rc1 {[%clk 0:02:09]}  Re8 {[%clk 0:02:27]} 14. Bf3 {[%clk 0:01:53]}  Bf8 {[%clk 0:02:19]} 15. Bf4 {[%clk 0:01:26]}  Ne5 {[%clk 0:01:53]} 16. Bxe5 {[%clk 0:00:51]}  Rxe5 {[%clk 0:01:51]} 17. c6 {[%clk 0:00:52]}  b6 {[%clk 0:01:06]} 18. c7 {[%clk 0:00:31]}  Qf6 {[%clk 0:01:05]} 19. Nc6 {[%clk 0:00:26]}  Re8 {[%clk 0:00:59]} 20. Qxd5 {[%clk 0:00:23]}  Ng5 {[%clk 0:00:49]} 21. Ne7+ {[%clk 0:00:20]}  Bxe7 {[%clk 0:00:47]} 22. Qxa8 {[%clk 0:00:20]}  Nxf3+ {[%clk 0:00:46]} 23. Qxf3 {[%clk 0:00:20]}  Qxb2 {[%clk 0:00:44]} 24. Na7 {[%clk 0:00:18]}  Qxa2 {[%clk 0:00:39]} 25. Nxc8 {[%clk 0:00:17]}  Rxc8 {[%clk 0:00:39]} 26. Qg4 {[%clk 0:00:16]}  Qe6 {[%clk 0:00:34]} 27. Qxe6 {[%clk 0:00:14]}  fxe6 {[%clk 0:00:34]} 28. Rfd1 {[%clk 0:00:15]}  Kf7 {[%clk 0:00:33]} 29. Rc6 {[%clk 0:00:14]}  b5 {[%clk 0:00:28]} 30. g3 {[%clk 0:00:08]}  a4 {[%clk 0:00:27]} 31. Re1 {[%clk 0:00:06]}  a3 {[%clk 0:00:25]} 32. Rexe6 {[%clk 0:00:05]}  Rxc7 {[%clk 0:00:21]} 33. Rxc7 {[%clk 0:00:01]}  Kxe6 {[%clk 0:00:21]} 34. Ra7 {[%clk 0:00:00]}  b4 {[%clk 0:00:21]} 0-1


[Site "https://www.chess.com"]

[Event "Titled Tuesday Blitz July 4 Early 2023"]
[White "Vasques, Antonio Pedro Freixial"]
[Black "Aggelis, Nikolaos"]
[WhiteFideId "1908332"]
[BlackFideId "4213220"]
[WhiteElo "2323"]
[BlackElo "2558"]
[Result "0-1"]
[Round "6"]
[TimeControl "180+2"]
[Date "2023.07.04"]
[WhiteClock "0:00:18"]
[BlackClock "0:00:54"]
[Board "113"]

1. e4 {[%clk 0:03:00]}  c6 {[%clk 0:02:55]} 2. d4 {[%clk 0:02:56]}  d5 {[%clk 0:02:55]} 3. Nc3 {[%clk 0:02:56]}  dxe4 {[%clk 0:02:55]} 4. Nxe4 {[%clk 0:02:56]}  Nf6 {[%clk 0:02:55]} 5. Nxf6+ {[%clk 0:02:53]}  exf6 {[%clk 0:02:55]} 6. c3 {[%clk 0:02:50]}  Bd6 {[%clk 0:02:56]} 7. Bd3 {[%clk 0:02:46]}  O-O {[%clk 0:02:55]} 8. Qf3 {[%clk 0:02:46]}  Qc7 {[%clk 0:02:54]} 9. Ne2 {[%clk 0:02:45]}  Re8 {[%clk 0:02:50]} 10. h3 {[%clk 0:02:40]}  Nd7 {[%clk 0:02:49]} 11. O-O {[%clk 0:02:40]}  Nf8 {[%clk 0:02:49]} 12. Bf4 {[%clk 0:02:35]}  Be6 {[%clk 0:02:40]} 13. h4 {[%clk 0:02:16]}  Bd5 {[%clk 0:02:38]} 14. Qg3 {[%clk 0:02:16]}  Rad8 {[%clk 0:02:22]} 15. h5 {[%clk 0:02:07]}  Bxf4 {[%clk 0:02:21]} 16. Nxf4 {[%clk 0:02:08]}  Ne6 {[%clk 0:02:18]} 17. Nxd5 {[%clk 0:02:02]}  Rxd5 {[%clk 0:02:19]} 18. Qxc7 {[%clk 0:01:48]}  Nxc7 {[%clk 0:02:20]} 19. Rfe1 {[%clk 0:01:47]}  Kf8 {[%clk 0:02:19]} 20. Rxe8+ {[%clk 0:01:32]}  Kxe8 {[%clk 0:02:20]} 21. Re1+ {[%clk 0:01:32]}  Kf8 {[%clk 0:02:20]} 22. g4 {[%clk 0:01:31]}  g6 {[%clk 0:02:17]} 23. hxg6 {[%clk 0:01:20]}  hxg6 {[%clk 0:02:15]} 24. Kg2 {[%clk 0:01:19]}  Ne6 {[%clk 0:02:12]} 25. Bc4 {[%clk 0:01:18]}  Rd6 {[%clk 0:02:03]} 26. Bxe6 {[%clk 0:01:16]}  fxe6 {[%clk 0:02:02]} 27. Kf3 {[%clk 0:01:04]}  Kf7 {[%clk 0:02:00]} 28. b4 {[%clk 0:01:00]}  Rd8 {[%clk 0:01:57]} 29. a4 {[%clk 0:00:57]}  Rh8 {[%clk 0:01:56]} 30. Kg3 {[%clk 0:00:56]}  g5 {[%clk 0:01:47]} 31. f3 {[%clk 0:00:38]}  Ke7 {[%clk 0:01:42]} 32. Re2 {[%clk 0:00:36]}  b6 {[%clk 0:01:29]} 33. Rh2 {[%clk 0:00:34]}  Rxh2 {[%clk 0:01:27]} 34. Kxh2 {[%clk 0:00:35]}  b5 {[%clk 0:01:25]} 35. axb5 {[%clk 0:00:33]}  cxb5 {[%clk 0:01:26]} 36. Kg3 {[%clk 0:00:29]}  Kd6 {[%clk 0:01:26]} 37. f4 {[%clk 0:00:28]}  gxf4+ {[%clk 0:01:19]} 38. Kxf4 {[%clk 0:00:29]}  Kd5 {[%clk 0:01:20]} 39. g5 {[%clk 0:00:25]}  fxg5+ {[%clk 0:01:20]} 40. Kxg5 {[%clk 0:00:26]}  Kc4 {[%clk 0:01:20]} 41. Kf6 {[%clk 0:00:26]}  Kxc3 {[%clk 0:01:21]} 42. Ke5 {[%clk 0:00:26]}  a6 {[%clk 0:00:57]} 43. Ke4 {[%clk 0:00:20]}  Kxb4 {[%clk 0:00:56]} 44. Ke5 {[%clk 0:00:18]}  Kc4 {[%clk 0:00:54]} 0-1


[Site "https://www.chess.com"]

[Event "Titled Tuesday Blitz July 4 Early 2023"]
[White "Mortazavi, Ali"]
[Black "Andreassen, Lars"]
[WhiteFideId "401323"]
[BlackFideId "1504878"]
[WhiteElo "2553"]
[BlackElo "2251"]
[Result "0-1"]
[Round "6"]
[TimeControl "180+2"]
[Date "2023.07.04"]
[WhiteClock "0:00:00"]
[BlackClock "0:00:10"]
[Board "114"]

1. Nf3 {[%clk 0:03:00]}  d5 {[%clk 0:02:40]} 2. g3 {[%clk 0:02:59]}  e6 {[%clk 0:02:39]} 3. Bg2 {[%clk 0:03:00]}  Nf6 {[%clk 0:02:40]} 4. O-O {[%clk 0:03:00]}  Be7 {[%clk 0:02:41]} 5. d3 {[%clk 0:03:01]}  O-O {[%clk 0:02:41]} 6. Nbd2 {[%clk 0:03:02]}  b6 {[%clk 0:02:41]} 7. e4 {[%clk 0:03:03]}  Bb7 {[%clk 0:02:41]} 8. e5 {[%clk 0:03:03]}  Ne8 {[%clk 0:02:40]} 9. Re1 {[%clk 0:03:03]}  c5 {[%clk 0:02:40]} 10. Nf1 {[%clk 0:03:03]}  Nd7 {[%clk 0:02:39]} 11. h4 {[%clk 0:03:03]}  Qc7 {[%clk 0:02:37]} 12. Bf4 {[%clk 0:03:02]}  d4 {[%clk 0:02:37]} 13. N1h2 {[%clk 0:02:59]}  h5 {[%clk 0:02:36]} 14. Ng5 {[%clk 0:02:49]}  Bxg2 {[%clk 0:02:35]} 15. Kxg2 {[%clk 0:02:49]}  Qc6+ {[%clk 0:02:33]} 16. Kg1 {[%clk 0:02:47]}  g6 {[%clk 0:02:32]} 17. Ne4 {[%clk 0:02:40]}  Ng7 {[%clk 0:02:29]} 18. Nf3 {[%clk 0:02:28]}  Nf5 {[%clk 0:02:21]} 19. Bg5 {[%clk 0:02:24]}  Bxg5 {[%clk 0:02:21]} 20. hxg5 {[%clk 0:02:19]}  Kg7 {[%clk 0:02:17]} 21. Qd2 {[%clk 0:02:15]}  Rh8 {[%clk 0:02:17]} 22. Qf4 {[%clk 0:02:15]}  Qd5 {[%clk 0:02:01]} 23. b3 {[%clk 0:02:11]}  a5 {[%clk 0:01:59]} 24. a4 {[%clk 0:02:10]}  Rad8 {[%clk 0:01:50]} 25. Kh2 {[%clk 0:02:10]}  Rh7 {[%clk 0:01:28]} 26. Rh1 {[%clk 0:02:08]}  Rdh8 {[%clk 0:01:28]} 27. Rag1 {[%clk 0:02:02]}  Kf8 {[%clk 0:01:28]} 28. Rg2 {[%clk 0:02:01]}  Ke7 {[%clk 0:01:22]} 29. Kg1 {[%clk 0:02:01]}  Kd8 {[%clk 0:01:22]} 30. Rgh2 {[%clk 0:02:02]}  Kc7 {[%clk 0:01:21]} 31. Kf1 {[%clk 0:01:55]}  Kb7 {[%clk 0:01:22]} 32. Ke2 {[%clk 0:01:56]}  Ka7 {[%clk 0:01:22]} 33. Rh3 {[%clk 0:01:42]}  Ka6 {[%clk 0:01:07]} 34. R3h2 {[%clk 0:01:42]}  Ka7 {[%clk 0:01:07]} 35. Kd2 {[%clk 0:01:39]}  Ka6 {[%clk 0:01:07]} 36. Kc1 {[%clk 0:01:29]}  Qc6 {[%clk 0:00:58]} 37. Kd2 {[%clk 0:01:28]}  Qc8 {[%clk 0:00:46]} 38. g4 {[%clk 0:01:22]}  Ne7 {[%clk 0:00:27]} 39. Nd6 {[%clk 0:01:10]}  Qa8 {[%clk 0:00:19]} 40. Qe4 {[%clk 0:00:54]}  Nd5 {[%clk 0:00:19]} 41. gxh5 {[%clk 0:00:51]}  gxh5 {[%clk 0:00:19]} 42. Rh3 {[%clk 0:00:42]}  Qf8 {[%clk 0:00:19]} 43. Kc1 {[%clk 0:00:40]}  Qg7 {[%clk 0:00:19]} 44. Kb2 {[%clk 0:00:39]}  Qg6 {[%clk 0:00:18]} 45. Qxg6 {[%clk 0:00:34]}  fxg6 {[%clk 0:00:19]} 46. Nh4 {[%clk 0:00:34]}  Rg7 {[%clk 0:00:19]} 47. Rf3 {[%clk 0:00:35]}  Nxe5 {[%clk 0:00:18]} 48. Rf6 {[%clk 0:00:30]}  Nxf6 {[%clk 0:00:18]} 49. gxf6 {[%clk 0:00:31]}  Rd7 {[%clk 0:00:18]} 50. Ne4 {[%clk 0:00:28]}  Ng4 {[%clk 0:00:15]} 51. Nxg6 {[%clk 0:00:25]}  Rh6 {[%clk 0:00:13]} 52. Nf8 {[%clk 0:00:21]}  Rf7 {[%clk 0:00:13]} 53. Nxe6 {[%clk 0:00:21]}  Nxf6 {[%clk 0:00:13]} 54. Nd6 {[%clk 0:00:16]}  Re7 {[%clk 0:00:12]} 55. Nd8 {[%clk 0:00:07]}  Nd5 {[%clk 0:00:11]} 56. Ne4 {[%clk 0:00:00]}  Nc3 {[%clk 0:00:10]} 0-1


[Site "https://www.chess.com"]

[Event "Titled Tuesday Blitz July 4 Early 2023"]
[White "Tsyhanchuk, Stanislav"]
[Black "lagarto93"]
[WhiteFideId "13505130"]
[WhiteElo "2239"]
[BlackElo "2543"]
[Result "0-1"]
[Round "6"]
[TimeControl "180+2"]
[Date "2023.07.04"]
[WhiteClock "0:00:08"]
[BlackClock "0:00:10"]
[Board "115"]

1. c4 {[%clk 0:03:00]}  e5 {[%clk 0:02:59]} 2. Nc3 {[%clk 0:03:01]}  Nf6 {[%clk 0:03:00]} 3. Nf3 {[%clk 0:03:01]}  Nc6 {[%clk 0:03:00]} 4. e4 {[%clk 0:03:01]}  Bb4 {[%clk 0:02:59]} 5. d3 {[%clk 0:03:00]}  O-O {[%clk 0:02:58]} 6. a3 {[%clk 0:02:58]}  Bxc3+ {[%clk 0:02:58]} 7. bxc3 {[%clk 0:02:59]}  d6 {[%clk 0:02:58]} 8. h3 {[%clk 0:02:59]}  Ne7 {[%clk 0:02:58]} 9. g4 {[%clk 0:02:55]}  c6 {[%clk 0:02:53]} 10. Bg2 {[%clk 0:02:49]}  Be6 {[%clk 0:02:48]} 11. O-O {[%clk 0:02:47]}  Ng6 {[%clk 0:02:48]} 12. Re1 {[%clk 0:02:30]}  h6 {[%clk 0:02:47]} 13. Rb1 {[%clk 0:02:27]}  b6 {[%clk 0:02:44]} 14. Qe2 {[%clk 0:02:23]}  Re8 {[%clk 0:02:44]} 15. d4 {[%clk 0:02:14]}  exd4 {[%clk 0:02:29]} 16. cxd4 {[%clk 0:02:14]}  d5 {[%clk 0:02:29]} 17. cxd5 {[%clk 0:02:11]}  Bxd5 {[%clk 0:02:15]} 18. e5 {[%clk 0:02:05]}  Nd7 {[%clk 0:01:52]} 19. Bb2 {[%clk 0:01:54]}  Ndf8 {[%clk 0:01:51]} 20. Qe3 {[%clk 0:01:26]}  Ne6 {[%clk 0:01:51]} 21. Nd2 {[%clk 0:01:25]}  Bxg2 {[%clk 0:01:49]} 22. Kxg2 {[%clk 0:01:26]}  Nef4+ {[%clk 0:01:48]} 23. Kh2 {[%clk 0:01:25]}  Nd5 {[%clk 0:01:45]} 24. Qf3 {[%clk 0:01:18]}  Qg5 {[%clk 0:01:29]} 25. Ne4 {[%clk 0:01:16]}  Qe7 {[%clk 0:01:21]} 26. Nd6 {[%clk 0:01:13]}  Rf8 {[%clk 0:01:20]} 27. Nf5 {[%clk 0:01:05]}  Qd7 {[%clk 0:01:13]} 28. a4 {[%clk 0:00:49]}  Rae8 {[%clk 0:01:13]} 29. Ba3 {[%clk 0:00:49]}  Nge7 {[%clk 0:01:07]} 30. Rbc1 {[%clk 0:00:27]}  b5 {[%clk 0:00:49]} 31. axb5 {[%clk 0:00:20]}  cxb5 {[%clk 0:00:49]} 32. Nxe7+ {[%clk 0:00:20]}  Nxe7 {[%clk 0:00:47]} 33. Bd6 {[%clk 0:00:20]}  Rc8 {[%clk 0:00:43]} 34. Qa3 {[%clk 0:00:20]}  Rxc1 {[%clk 0:00:41]} 35. Rxc1 {[%clk 0:00:21]}  Re8 {[%clk 0:00:41]} 36. Rc7 {[%clk 0:00:21]}  Qd8 {[%clk 0:00:34]} 37. Rxe7 {[%clk 0:00:21]}  Rxe7 {[%clk 0:00:35]} 38. Bxe7 {[%clk 0:00:22]}  Qxd4 {[%clk 0:00:35]} 39. Qe3 {[%clk 0:00:19]}  Qd5 {[%clk 0:00:32]} 40. Bd6 {[%clk 0:00:16]}  a5 {[%clk 0:00:32]} 41. Qb6 {[%clk 0:00:15]}  b4 {[%clk 0:00:32]} 42. Kg3 {[%clk 0:00:14]}  Qd3+ {[%clk 0:00:30]} 43. f3 {[%clk 0:00:10]}  Qd5 {[%clk 0:00:25]} 44. Qb8+ {[%clk 0:00:09]}  Kh7 {[%clk 0:00:26]} 45. Qb6 {[%clk 0:00:07]}  b3 {[%clk 0:00:25]} 46. Bc7 {[%clk 0:00:06]}  a4 {[%clk 0:00:24]} 47. Qb4 {[%clk 0:00:06]}  Qd3 {[%clk 0:00:19]} 48. Bd6 {[%clk 0:00:04]}  Qc2 {[%clk 0:00:16]} 49. e6 {[%clk 0:00:04]}  fxe6 {[%clk 0:00:16]} 50. Qa3 {[%clk 0:00:03]}  b2 {[%clk 0:00:16]} 51. Qa2 {[%clk 0:00:03]}  b1=Q {[%clk 0:00:16]} 52. Qxe6 {[%clk 0:00:03]}  Qg1+ {[%clk 0:00:15]} 53. Kh4 {[%clk 0:00:04]}  Qg6 {[%clk 0:00:12]} 54. Qe7 {[%clk 0:00:02]}  Qg5+ {[%clk 0:00:07]} 55. Qxg5 {[%clk 0:00:03]}  hxg5+ {[%clk 0:00:08]} 56. Kxg5 {[%clk 0:00:04]}  Qe3+ {[%clk 0:00:07]} 57. Bf4 {[%clk 0:00:05]}  Qd3 {[%clk 0:00:08]} 58. h4 {[%clk 0:00:05]}  a3 {[%clk 0:00:09]} 59. Be5 {[%clk 0:00:05]}  a2 {[%clk 0:00:09]} 60. Kf4 {[%clk 0:00:06]}  Qc4+ {[%clk 0:00:09]} 61. Kg3 {[%clk 0:00:05]}  Qd5 {[%clk 0:00:09]} 62. f4 {[%clk 0:00:06]}  Qxe5 {[%clk 0:00:09]} 63. fxe5 {[%clk 0:00:07]}  a1=Q {[%clk 0:00:10]} 64. Kf4 {[%clk 0:00:08]}  Qd4+ {[%clk 0:00:10]} 65. Kg5 {[%clk 0:00:08]}  Qxe5# {[%clk 0:00:10]} 0-1


[Site "https://www.chess.com"]

[Event "Titled Tuesday Blitz July 4 Early 2023"]
[White "Kovacevic, Radmila"]
[Black "Todorovic, Bojan"]
[WhiteFideId "933171"]
[BlackFideId "917087"]
[WhiteElo "2227"]
[BlackElo "2362"]
[Result "1-0"]
[Round "6"]
[TimeControl "180+2"]
[Date "2023.07.04"]
[WhiteClock "0:00:23"]
[BlackClock "0:00:54"]
[Board "116"]

1. e4 {[%clk 0:03:00]}  g6 {[%clk 0:02:59]} 2. d4 {[%clk 0:03:00]}  Bg7 {[%clk 0:02:58]} 3. Nc3 {[%clk 0:02:59]}  d6 {[%clk 0:02:58]} 4. h3 {[%clk 0:02:57]}  a6 {[%clk 0:02:58]} 5. Nf3 {[%clk 0:02:56]}  Nd7 {[%clk 0:02:57]} 6. Bg5 {[%clk 0:02:56]}  b5 {[%clk 0:02:55]} 7. a3 {[%clk 0:02:55]}  Bb7 {[%clk 0:02:54]} 8. Bd3 {[%clk 0:02:54]}  c5 {[%clk 0:02:50]} 9. dxc5 {[%clk 0:02:45]}  Nxc5 {[%clk 0:02:35]} 10. O-O {[%clk 0:02:43]}  Nf6 {[%clk 0:02:31]} 11. Qe2 {[%clk 0:02:37]}  O-O {[%clk 0:02:30]} 12. Rad1 {[%clk 0:02:36]}  Qc7 {[%clk 0:02:28]} 13. Bf4 {[%clk 0:02:24]}  Nxd3 {[%clk 0:02:23]} 14. cxd3 {[%clk 0:02:23]}  Nd7 {[%clk 0:02:18]} 15. Bg3 {[%clk 0:02:05]}  Qb6 {[%clk 0:02:09]} 16. d4 {[%clk 0:02:02]}  Rac8 {[%clk 0:02:07]} 17. Nd5 {[%clk 0:01:51]}  Bxd5 {[%clk 0:02:02]} 18. exd5 {[%clk 0:01:52]}  Rfe8 {[%clk 0:02:02]} 19. Bh4 {[%clk 0:01:45]}  Bf6 {[%clk 0:01:53]} 20. Qe4 {[%clk 0:01:30]}  Bxh4 {[%clk 0:01:48]} 21. Qxh4 {[%clk 0:01:31]}  Nf6 {[%clk 0:01:47]} 22. Ng5 {[%clk 0:01:24]}  Qb7 {[%clk 0:01:47]} 23. Rfe1 {[%clk 0:01:17]}  Qxd5 {[%clk 0:01:46]} 24. Re3 {[%clk 0:01:10]}  Kg7 {[%clk 0:01:36]} 25. Rde1 {[%clk 0:01:09]}  h6 {[%clk 0:01:29]} 26. Nf3 {[%clk 0:01:00]}  e6 {[%clk 0:01:26]} 27. g4 {[%clk 0:00:57]}  Nh7 {[%clk 0:01:22]} 28. Nd2 {[%clk 0:00:53]}  Ng5 {[%clk 0:01:16]} 29. f4 {[%clk 0:00:52]}  Qxd4 {[%clk 0:01:09]} 30. fxg5 {[%clk 0:00:50]}  Qxd2 {[%clk 0:01:09]} 31. gxh6+ {[%clk 0:00:44]}  Kh7 {[%clk 0:01:09]} 32. Qf6 {[%clk 0:00:40]}  Rg8 {[%clk 0:01:08]} 33. Qxf7+ {[%clk 0:00:34]}  Kh8 {[%clk 0:01:03]} 34. Qxe6 {[%clk 0:00:23]}  Rc2 {[%clk 0:00:57]} 35. Qf6+ {[%clk 0:00:23]}  Kh7 {[%clk 0:00:53]} 36. Re7+ {[%clk 0:00:23]}  Kxh6 {[%clk 0:00:54]} 37. Qh4# {[%clk 0:00:23]} 1-0


[Site "https://www.chess.com"]

[Event "Titled Tuesday Blitz July 4 Early 2023"]
[White "Hambleton, Aman"]
[Black "Sukandar, Irine Kharisma"]
[WhiteFideId "2606577"]
[BlackFideId "7101937"]
[WhiteElo "2763"]
[BlackElo "2451"]
[Result "1-0"]
[Round "6"]
[TimeControl "180+2"]
[Date "2023.07.04"]
[WhiteClock "0:00:02"]
[BlackClock "0:00:00"]
[Board "117"]

1. e4 {[%clk 0:02:50]}  c5 {[%clk 0:02:58]} 2. Nf3 {[%clk 0:02:45]}  e6 {[%clk 0:02:58]} 3. c3 {[%clk 0:02:38]}  d5 {[%clk 0:02:45]} 4. d3 {[%clk 0:02:38]}  Nc6 {[%clk 0:02:43]} 5. Nbd2 {[%clk 0:02:39]}  g6 {[%clk 0:02:42]} 6. g3 {[%clk 0:02:37]}  Bg7 {[%clk 0:02:42]} 7. Bg2 {[%clk 0:02:38]}  Nge7 {[%clk 0:02:42]} 8. O-O {[%clk 0:02:39]}  O-O {[%clk 0:02:42]} 9. Re1 {[%clk 0:02:40]}  Qc7 {[%clk 0:02:37]} 10. Qe2 {[%clk 0:02:35]}  b6 {[%clk 0:02:37]} 11. e5 {[%clk 0:02:29]}  Bb7 {[%clk 0:02:37]} 12. h4 {[%clk 0:02:28]}  Rae8 {[%clk 0:02:35]} 13. Nf1 {[%clk 0:02:22]}  b5 {[%clk 0:02:29]} 14. h5 {[%clk 0:02:19]}  d4 {[%clk 0:02:17]} 15. h6 {[%clk 0:01:55]}  Bh8 {[%clk 0:02:17]} 16. cxd4 {[%clk 0:01:54]}  Nxd4 {[%clk 0:02:14]} 17. Nxd4 {[%clk 0:01:52]}  cxd4 {[%clk 0:02:14]} 18. Nh2 {[%clk 0:01:33]}  Bxg2 {[%clk 0:02:10]} 19. Kxg2 {[%clk 0:01:32]}  Nc6 {[%clk 0:02:03]} 20. Bf4 {[%clk 0:00:57]}  Qb7 {[%clk 0:02:00]} 21. Qe4 {[%clk 0:00:56]}  f6 {[%clk 0:01:22]} 22. exf6 {[%clk 0:00:36]}  e5 {[%clk 0:01:22]} 23. Qd5+ {[%clk 0:00:29]}  Qf7 {[%clk 0:01:21]} 24. Qxc6 {[%clk 0:00:14]}  exf4 {[%clk 0:01:21]} 25. Ng4 {[%clk 0:00:12]}  fxg3 {[%clk 0:01:11]} 26. fxg3 {[%clk 0:00:13]}  Rc8 {[%clk 0:01:08]} 27. Qf3 {[%clk 0:00:02]}  Bxf6 {[%clk 0:01:03]} 28. Rf1 {[%clk 0:00:02]}  Rc2+ {[%clk 0:01:01]} 29. Kh3 {[%clk 0:00:02]}  Qd7 {[%clk 0:00:57]} 30. Qe4 {[%clk 0:00:02]}  Be7 {[%clk 0:00:22]} 31. Rxf8+ {[%clk 0:00:02]}  Bxf8 {[%clk 0:00:22]} 32. Rf1 {[%clk 0:00:02]}  Be7 {[%clk 0:00:21]} 33. Qe5 {[%clk 0:00:02]}  Bf8 {[%clk 0:00:09]} 34. Rxf8+ {[%clk 0:00:01]}  Kxf8 {[%clk 0:00:08]} 35. Qh8+ {[%clk 0:00:02]}  Ke7 {[%clk 0:00:09]} 36. Qxh7+ {[%clk 0:00:02]}  Kd8 {[%clk 0:00:08]} 37. Qg8+ {[%clk 0:00:02]}  Kc7 {[%clk 0:00:08]} 38. h7 {[%clk 0:00:03]}  Rc1 {[%clk 0:00:04]} 39. h8=Q {[%clk 0:00:02]}  Rh1+ {[%clk 0:00:04]} 40. Kg2 {[%clk 0:00:03]}  Qc6+ {[%clk 0:00:04]} 41. Kf2 {[%clk 0:00:02]}  Qc2+ {[%clk 0:00:03]} 42. Kf3 {[%clk 0:00:03]}  Qd1+ {[%clk 0:00:03]} 43. Kf4 {[%clk 0:00:03]}  Qf1+ {[%clk 0:00:03]} 44. Ke5 {[%clk 0:00:03]}  Qe2+ {[%clk 0:00:02]} 45. Kd5 {[%clk 0:00:02]}  Rxh8 {[%clk 0:00:02]} 46. Qg7+ {[%clk 0:00:02]}  Kb6 {[%clk 0:00:01]} 47. Qf6+ {[%clk 0:00:02]}  Ka5 {[%clk 0:00:01]} 48. Qxh8 {[%clk 0:00:02]}  Qxg4 {[%clk 0:00:01]} 49. Qxd4 {[%clk 0:00:02]}  Qf5+ {[%clk 0:00:00]} 50. Kd6 {[%clk 0:00:02]} 1-0


[Site "https://www.chess.com"]